[Event "*** Titled Tuesday Blitz"]
[Site "Chess.com"]
[Date "2021.04.20"]
[Round "5"]
[White "Firouzja2003"]
[Black "MatyChess1"]
[Result "1-0"]
[WhiteElo "3127"]
[BlackElo "2650"]
[TimeControl "180+1"]
[EndTime "10:53:32 PDT"]
[Termination "Firouzja2003 won on time"]

1. d4 {[%clk 0:03:00.9]} 1... d5 {[%clk 0:03:00]} 2. Bg5 {[%clk 0:03:00.5]} 2...
h6 {[%clk 0:02:59.7]} 3. Bh4 {[%clk 0:03:00.1]} 3... c5 {[%clk 0:03:00.6]} 4. e3
{[%clk 0:02:59.6]} 4... Nc6 {[%clk 0:02:57.8]} 5. Nf3 {[%clk 0:02:56.9]} 5...
cxd4 {[%clk 0:02:57.3]} 6. exd4 {[%clk 0:02:56.8]} 6... Bg4 {[%clk 0:02:57.5]}
7. c3 {[%clk 0:02:56.3]} 7... Nf6 {[%clk 0:02:54.8]} 8. Qb3 {[%clk 0:02:55.4]}
8... Qb6 {[%clk 0:02:23.6]} 9. Nbd2 {[%clk 0:02:24.2]} 9... e6 {[%clk
0:02:20.7]} 10. Ne5 {[%clk 0:02:23.8]} 10... Qxb3 {[%clk 0:01:46.9]} 11. axb3
{[%clk 0:02:14.1]} 11... Nxe5 {[%clk 0:01:38.6]} 12. dxe5 {[%clk 0:02:14.5]}
12... Nd7 {[%clk 0:01:39.5]} 13. Bb5 {[%clk 0:02:14.9]} 13... a6 {[%clk
0:01:29.5]} 14. h3 {[%clk 0:02:14.4]} 14... Bh5 {[%clk 0:01:22.3]} 15. b4 {[%clk
0:02:08.9]} 15... Rc8 {[%clk 0:01:20.7]} 16. Bxd7+ {[%clk 0:02:02.1]} 16... Kxd7
{[%clk 0:01:21.6]} 17. Nb3 {[%clk 0:02:01.4]} 17... Rc4 {[%clk 0:01:21]} 18. g4
{[%clk 0:01:49.7]} 18... Bg6 {[%clk 0:01:17.7]} 19. Na5 {[%clk 0:01:49.8]} 19...
Re4+ {[%clk 0:00:59.5]} 20. Kd2 {[%clk 0:01:50]} 20... h5 {[%clk 0:00:32.2]} 21.
f3 {[%clk 0:01:46.1]} 21... Rxe5 {[%clk 0:00:30.4]} 22. Bg3 {[%clk 0:01:45.9]}
22... f6 {[%clk 0:00:23]} 23. Nxb7 {[%clk 0:01:41]} 23... hxg4 {[%clk 0:00:21]}
24. hxg4 {[%clk 0:01:40.3]} 24... Rxh1 {[%clk 0:00:20.6]} 25. Rxh1 {[%clk
0:01:41.2]} 25... d4 {[%clk 0:00:19.1]} 26. Bxe5 {[%clk 0:01:39.2]} 26... fxe5
{[%clk 0:00:19.2]} 27. Nc5+ {[%clk 0:01:35.4]} 27... Kd6 {[%clk 0:00:16.4]} 28.
Ra1 {[%clk 0:01:32.3]} 28... Be7 {[%clk 0:00:14.3]} 29. Rxa6+ {[%clk 0:01:32.5]}
29... Kd5 {[%clk 0:00:14.9]} 30. Nxe6 {[%clk 0:01:32]} 30... Kc4 {[%clk
0:00:09.8]} 31. Nxd4 {[%clk 0:01:29.4]} 31... Bg5+ {[%clk 0:00:09.4]} 32. Kd1
{[%clk 0:01:27.8]} 32... Bd3 {[%clk 0:00:02.9]} 33. Rc6+ {[%clk 0:01:27.5]}
33... Kd5 {[%clk 0:00:02.2]} 34. Rc5+ {[%clk 0:01:28.4]} 34... Kd6 {[%clk
0:00:02.7]} 35. Nf5+ {[%clk 0:01:29.1]} 1-0

[Event "*** Titled Tuesday Blitz"]
[Site "Chess.com"]
[Date "2021.04.20"]
[Round "5"]
[White "HrvojeZagreb"]
[Black "Skat2704"]
[Result "0-1"]
[WhiteElo "2290"]
[BlackElo "2673"]
[TimeControl "180+1"]
[EndTime "10:53:34 PDT"]
[Termination "Skat2704 won by checkmate"]

1. d4 {[%clk 0:03:00.9]} 1... d5 {[%clk 0:02:59.9]} 2. Bf4 {[%clk 0:03:00.1]}
2... e6 {[%clk 0:03:00]} 3. e3 {[%clk 0:03:00.2]} 3... Bd6 {[%clk 0:03:00.5]} 4.
Bg3 {[%clk 0:03:00.2]} 4... Nf6 {[%clk 0:03:00.1]} 5. Nf3 {[%clk 0:02:58.9]}
5... O-O {[%clk 0:03:00.6]} 6. Bd3 {[%clk 0:02:58.2]} 6... c5 {[%clk 0:03:01.1]}
7. c3 {[%clk 0:02:58.5]} 7... b6 {[%clk 0:03:00.1]} 8. Qe2 {[%clk 0:02:55.3]}
8... Bb7 {[%clk 0:02:59.5]} 9. Nbd2 {[%clk 0:02:55.1]} 9... Ne4 {[%clk
0:02:54.2]} 10. Bxd6 {[%clk 0:02:43.5]} 10... Qxd6 {[%clk 0:02:51.7]} 11. Ne5
{[%clk 0:02:43]} 11... Nd7 {[%clk 0:02:47.2]} 12. Nxd7 {[%clk 0:02:24.1]} 12...
Qxd7 {[%clk 0:02:46.1]} 13. Bxe4 {[%clk 0:02:18.8]} 13... dxe4 {[%clk
0:02:44.8]} 14. dxc5 {[%clk 0:02:15.2]} 14... bxc5 {[%clk 0:02:41.6]} 15. O-O
{[%clk 0:02:09.9]} 15... a5 {[%clk 0:02:41.7]} 16. Rfd1 {[%clk 0:02:06.8]} 16...
Qc7 {[%clk 0:02:36]} 17. Qc4 {[%clk 0:01:42.9]} 17... Bd5 {[%clk 0:02:26.8]} 18.
Qa4 {[%clk 0:01:34.4]} 18... f5 {[%clk 0:02:18.6]} 19. c4 {[%clk 0:01:26.2]}
19... Bc6 {[%clk 0:02:15.3]} 20. Qc2 {[%clk 0:01:16.9]} 20... Rf6 {[%clk
0:02:07.4]} 21. Nf1 {[%clk 0:01:06]} 21... Raf8 {[%clk 0:02:01.2]} 22. g3 {[%clk
0:01:00.9]} 22... e5 {[%clk 0:01:55.9]} 23. Rd2 {[%clk 0:00:51.9]} 23... f4
{[%clk 0:01:48.8]} 24. Rad1 {[%clk 0:00:50.2]} 24... Qc8 {[%clk 0:01:33.6]} 25.
Rd6 {[%clk 0:00:26.5]} 25... f3 {[%clk 0:01:26.2]} 26. Rxf6 {[%clk 0:00:18.5]}
26... Qh3 {[%clk 0:01:13.6]} 27. Rxf8+ {[%clk 0:00:17.6]} 27... Kxf8 {[%clk
0:01:13.7]} 28. Rd8+ {[%clk 0:00:13.5]} 28... Ke7 {[%clk 0:01:12.9]} 29. Qd1
{[%clk 0:00:11.7]} 29... Qg2# {[%clk 0:01:10.4]} 0-1

[Event "*** Titled Tuesday Blitz"]
[Site "Chess.com"]
[Date "2021.04.20"]
[Round "5"]
[White "Anton_Demchenko"]
[Black "Artem_Sadovsky"]
[Result "1-0"]
[WhiteElo "2904"]
[BlackElo "2627"]
[TimeControl "180+1"]
[EndTime "10:53:35 PDT"]
[Termination "Anton_Demchenko won by resignation"]

1. e4 {[%clk 0:03:00.9]} 1... g6 {[%clk 0:02:59.8]} 2. d4 {[%clk 0:03:00.2]}
2... Bg7 {[%clk 0:03:00.1]} 3. Nc3 {[%clk 0:03:00.5]} 3... c6 {[%clk 0:02:59.9]}
4. Nf3 {[%clk 0:02:57]} 4... d5 {[%clk 0:03:00.1]} 5. Bf4 {[%clk 0:02:57.5]}
5... dxe4 {[%clk 0:02:59.4]} 6. Nxe4 {[%clk 0:02:57.1]} 6... Nd7 {[%clk
0:02:59.5]} 7. Qe2 {[%clk 0:02:49.7]} 7... Ngf6 {[%clk 0:02:46.2]} 8. Nd6+
{[%clk 0:02:47.4]} 8... Kf8 {[%clk 0:02:46.8]} 9. Nxc8 {[%clk 0:02:35.2]} 9...
Rxc8 {[%clk 0:02:47.5]} 10. O-O-O {[%clk 0:02:33.3]} 10... Qa5 {[%clk
0:02:37.4]} 11. Kb1 {[%clk 0:02:31.8]} 11... Nd5 {[%clk 0:02:28.2]} 12. Bc1
{[%clk 0:02:27.9]} 12... e5 {[%clk 0:01:51.1]} 13. Nxe5 {[%clk 0:02:20.6]} 13...
Nxe5 {[%clk 0:01:43.8]} 14. dxe5 {[%clk 0:02:21.5]} 14... Re8 {[%clk 0:01:31.7]}
15. f4 {[%clk 0:02:20.8]} 15... Qb4 {[%clk 0:01:27.9]} 16. Qf3 {[%clk
0:02:12.3]} 16... f6 {[%clk 0:01:14.3]} 17. c4 {[%clk 0:02:04.1]} 17... Ne7
{[%clk 0:01:06]} 18. Bd3 {[%clk 0:02:01.7]} 18... Kf7 {[%clk 0:00:56.1]} 19.
Rhe1 {[%clk 0:01:56.7]} 19... Rhf8 {[%clk 0:00:56]} 20. e6+ {[%clk 0:01:56.9]}
20... Kg8 {[%clk 0:00:56.2]} 21. f5 {[%clk 0:01:53.8]} 21... Nxf5 {[%clk
0:00:55.5]} 22. Bxf5 {[%clk 0:01:53.2]} 22... gxf5 {[%clk 0:00:56.4]} 23. Qxf5
{[%clk 0:01:33.1]} 23... Qxc4 {[%clk 0:00:55.9]} 24. Rd7 {[%clk 0:01:28]} 24...
Kh8 {[%clk 0:00:23.7]} 25. Bh6 {[%clk 0:01:15]} 25... Rf7 {[%clk 0:00:08.7]} 26.
Rxf7 {[%clk 0:01:10.8]} 26... Qd3+ {[%clk 0:00:08]} 27. Qxd3 {[%clk 0:01:10.2]}
1-0

[Event "*** Titled Tuesday Blitz"]
[Site "Chess.com"]
[Date "2021.04.20"]
[Round "5"]
[White "pastouche06"]
[Black "AryanTari"]
[Result "0-1"]
[WhiteElo "2563"]
[BlackElo "2883"]
[TimeControl "180+1"]
[EndTime "10:53:35 PDT"]
[Termination "AryanTari won on time"]

1. d4 {[%clk 0:03:00.9]} 1... d5 {[%clk 0:02:57.3]} 2. c4 {[%clk 0:02:59.8]}
2... e6 {[%clk 0:02:41.2]} 3. Nc3 {[%clk 0:02:59.5]} 3... c5 {[%clk 0:02:39.5]}
4. cxd5 {[%clk 0:02:57.3]} 4... exd5 {[%clk 0:02:38.1]} 5. Nf3 {[%clk
0:02:56.7]} 5... Nc6 {[%clk 0:02:36.3]} 6. dxc5 {[%clk 0:02:53.2]} 6... Bxc5
{[%clk 0:02:35.4]} 7. Nxd5 {[%clk 0:02:30.1]} 7... Be6 {[%clk 0:02:23.7]} 8. e4
{[%clk 0:02:19.8]} 8... Nf6 {[%clk 0:02:23.8]} 9. Nxf6+ {[%clk 0:01:58.9]} 9...
Qxf6 {[%clk 0:02:24.7]} 10. Bb5 {[%clk 0:01:58.7]} 10... O-O {[%clk 0:02:19.6]}
11. O-O {[%clk 0:01:55]} 11... Rac8 {[%clk 0:02:02.9]} 12. Bg5 {[%clk
0:01:18.8]} 12... Qxb2 {[%clk 0:01:59.4]} 13. Rb1 {[%clk 0:01:12.2]} 13... Qa3
{[%clk 0:01:56.7]} 14. Qa4 {[%clk 0:00:55.4]} 14... Qxa4 {[%clk 0:01:52.1]} 15.
Bxa4 {[%clk 0:00:56.3]} 15... b6 {[%clk 0:01:44.6]} 16. Bb3 {[%clk 0:00:52]}
16... Bxb3 {[%clk 0:01:39.8]} 17. Rxb3 {[%clk 0:00:52.9]} 17... Rfe8 {[%clk
0:01:35.9]} 18. Re1 {[%clk 0:00:35.8]} 18... h6 {[%clk 0:01:36.1]} 19. Bc1
{[%clk 0:00:28.5]} 19... Rcd8 {[%clk 0:01:34]} 20. Bb2 {[%clk 0:00:25.9]} 20...
a5 {[%clk 0:01:22.8]} 21. a4 {[%clk 0:00:20.1]} 21... Nb4 {[%clk 0:01:21.2]} 22.
Ne5 {[%clk 0:00:05.2]} 22... Rd2 {[%clk 0:01:12.7]} 23. Rf1 {[%clk 0:00:01.1]}
23... Rxb2 {[%clk 0:01:10]} 24. Rxb2 {[%clk 0:00:02]} 24... Rxe5 {[%clk
0:01:10.2]} 25. g3 {[%clk 0:00:02.5]} 25... Rxe4 {[%clk 0:01:10.3]} 26. Kg2
{[%clk 0:00:02.8]} 26... g5 {[%clk 0:01:10.4]} 27. f3 {[%clk 0:00:02.9]} 27...
Rc4 {[%clk 0:01:10.1]} 28. Rd1 {[%clk 0:00:02.8]} 28... Nc6 {[%clk 0:01:09.8]}
0-1

[Event "*** Titled Tuesday Blitz"]
[Site "Chess.com"]
[Date "2021.04.20"]
[Round "5"]
[White "Flopezin"]
[Black "topin8"]
[Result "1-0"]
[WhiteElo "2343"]
[BlackElo "2186"]
[TimeControl "180+1"]
[EndTime "10:53:35 PDT"]
[Termination "Flopezin won by resignation"]

1. c4 {[%clk 0:01:27.4]} 1... Nf6 {[%clk 0:02:57.8]} 2. Nc3 {[%clk 0:01:27.2]}
2... e6 {[%clk 0:02:58.3]} 3. e4 {[%clk 0:01:27.5]} 3... d5 {[%clk 0:02:41.3]}
4. cxd5 {[%clk 0:01:28.4]} 4... exd5 {[%clk 0:02:41.3]} 5. e5 {[%clk 0:01:29.3]}
5... d4 {[%clk 0:02:36.7]} 6. exf6 {[%clk 0:01:28.9]} 6... dxc3 {[%clk
0:02:36.4]} 7. Bb5+ {[%clk 0:01:29.8]} 7... c6 {[%clk 0:02:34.8]} 8. Qe2+ {[%clk
0:01:30.7]} 8... Be6 {[%clk 0:02:27]} 9. Bc4 {[%clk 0:01:31.6]} 9... Qxf6 {[%clk
0:02:17.2]} 10. dxc3 {[%clk 0:01:30.8]} 10... Bc5 {[%clk 0:02:10.8]} 11. Nf3
{[%clk 0:01:30.8]} 11... O-O {[%clk 0:02:06]} 12. Bxe6 {[%clk 0:01:31.2]} 12...
fxe6 {[%clk 0:01:27.9]} 13. Be3 {[%clk 0:01:31]} 13... Nd7 {[%clk 0:01:19.4]}
14. O-O-O {[%clk 0:01:30.4]} 14... Rad8 {[%clk 0:01:19.2]} 15. Rhe1 {[%clk
0:01:26.5]} 15... h6 {[%clk 0:01:13.7]} 16. Kb1 {[%clk 0:01:21.6]} 16... Qf5+
{[%clk 0:01:00.5]} 17. Qc2 {[%clk 0:01:17.4]} 17... Bxe3 {[%clk 0:00:11.4]} 18.
Rxe3 {[%clk 0:01:15.6]} 18... Kf7 {[%clk 0:00:08]} 19. Red3 {[%clk 0:01:01.8]}
19... e5 {[%clk 0:00:05.3]} 20. Rxd7+ {[%clk 0:00:58.4]} 20... Qxd7 {[%clk
0:00:04.5]} 21. Nxe5+ {[%clk 0:00:57.4]} 1-0

[Event "*** Titled Tuesday Blitz"]
[Site "Chess.com"]
[Date "2021.04.20"]
[Round "5"]
[White "Roedor"]
[Black "ChessQueen"]
[Result "0-1"]
[WhiteElo "2270"]
[BlackElo "2694"]
[TimeControl "180+1"]
[EndTime "10:53:40 PDT"]
[Termination "ChessQueen won by resignation"]

1. d4 {[%clk 0:03:00.9]} 1... Nf6 {[%clk 0:02:59.2]} 2. c4 {[%clk 0:03:00.5]}
2... e6 {[%clk 0:02:59.3]} 3. g3 {[%clk 0:03:00.2]} 3... d5 {[%clk 0:02:58.2]}
4. Nf3 {[%clk 0:02:59.9]} 4... dxc4 {[%clk 0:02:58.1]} 5. Bg2 {[%clk 0:03:00.4]}
5... Nc6 {[%clk 0:02:58.3]} 6. O-O {[%clk 0:03:00.4]} 6... Rb8 {[%clk
0:02:56.6]} 7. e3 {[%clk 0:02:54.5]} 7... b5 {[%clk 0:02:31.6]} 8. Qe2 {[%clk
0:02:53.3]} 8... Be7 {[%clk 0:02:29.5]} 9. Rd1 {[%clk 0:02:51.8]} 9... O-O
{[%clk 0:02:28.7]} 10. e4 {[%clk 0:02:50.9]} 10... Nb4 {[%clk 0:02:28]} 11. Ne5
{[%clk 0:02:42.5]} 11... Nd7 {[%clk 0:02:25.1]} 12. Nxd7 {[%clk 0:02:35.8]}
12... Bxd7 {[%clk 0:02:21.3]} 13. b3 {[%clk 0:02:36.1]} 13... Nd3 {[%clk
0:02:19.3]} 14. bxc4 {[%clk 0:02:34.3]} 14... bxc4 {[%clk 0:02:19.1]} 15. Nd2
{[%clk 0:02:32.5]} 15... Bb5 {[%clk 0:02:17.8]} 16. a4 {[%clk 0:02:32.3]} 16...
Ba6 {[%clk 0:02:17.8]} 17. d5 {[%clk 0:02:22.5]} 17... Bf6 {[%clk 0:02:07]} 18.
Ba3 {[%clk 0:02:03]} 18... Bxa1 {[%clk 0:02:02.1]} 19. Bxf8 {[%clk 0:02:02.6]}
19... Qxf8 {[%clk 0:02:00.7]} 20. Rxa1 {[%clk 0:02:01.8]} 20... Rb2 {[%clk
0:01:54.1]} 21. Qe3 {[%clk 0:01:58.9]} 21... Qc5 {[%clk 0:01:49.1]} 22. Nf1
{[%clk 0:01:36.3]} 22... c3 {[%clk 0:01:33.4]} 23. Qxc5 {[%clk 0:01:25.2]} 23...
Nxc5 {[%clk 0:01:28]} 24. Ne3 {[%clk 0:01:26.1]} 24... Nd3 {[%clk 0:01:22.9]}
25. Bf1 {[%clk 0:01:23.5]} 25... c2 {[%clk 0:01:17.8]} 26. Nxc2 {[%clk
0:01:11.2]} 26... Rxc2 {[%clk 0:01:16.2]} 27. Rb1 {[%clk 0:01:11.7]} 27... g6
{[%clk 0:01:10.1]} 28. Rb8+ {[%clk 0:00:55]} 28... Kg7 {[%clk 0:01:09.4]} 29.
Ra8 {[%clk 0:00:54]} 29... Rc1 {[%clk 0:01:04.7]} 30. Rxa7 {[%clk 0:00:52.8]}
30... Nb4 {[%clk 0:01:04.5]} 31. Kg2 {[%clk 0:00:47.3]} 31... Bxf1+ {[%clk
0:01:03.4]} 32. Kf3 {[%clk 0:00:47.8]} 32... exd5 {[%clk 0:01:03.2]} 33. exd5
{[%clk 0:00:46.5]} 33... Nxd5 {[%clk 0:01:03]} 34. a5 {[%clk 0:00:46.9]} 34...
Ra1 {[%clk 0:01:00.2]} 35. Ke4 {[%clk 0:00:45.2]} 35... Nc3+ {[%clk 0:00:57]}
36. Ke5 {[%clk 0:00:43.4]} 36... c5 {[%clk 0:00:52.3]} 37. h4 {[%clk 0:00:42.2]}
37... h5 {[%clk 0:00:50.8]} 38. Kd6 {[%clk 0:00:42.1]} 38... Nb5+ {[%clk
0:00:50.4]} 0-1

[Event "*** Titled Tuesday Blitz"]
[Site "Chess.com"]
[Date "2021.04.20"]
[Round "5"]
[White "mac0504"]
[Black "ChelsieMonica"]
[Result "1-0"]
[WhiteElo "2587"]
[BlackElo "2403"]
[TimeControl "180+1"]
[EndTime "10:53:41 PDT"]
[Termination "mac0504 won by checkmate"]

1. e4 {[%clk 0:03:00.9]} 1... Nc6 {[%clk 0:02:51]} 2. d4 {[%clk 0:03:00.4]} 2...
e5 {[%clk 0:02:50.4]} 3. d5 {[%clk 0:03:00.9]} 3... Nce7 {[%clk 0:02:50.6]} 4.
h4 {[%clk 0:03:01.6]} 4... d6 {[%clk 0:02:51.5]} 5. c4 {[%clk 0:02:57.3]} 5...
f5 {[%clk 0:02:51.1]} 6. Nc3 {[%clk 0:02:56.5]} 6... Nf6 {[%clk 0:02:49.6]} 7.
Bg5 {[%clk 0:02:48.9]} 7... f4 {[%clk 0:02:44.8]} 8. Be2 {[%clk 0:02:42.2]} 8...
Neg8 {[%clk 0:02:36.7]} 9. h5 {[%clk 0:02:18.7]} 9... h6 {[%clk 0:02:28.3]} 10.
Bh4 {[%clk 0:02:19]} 10... Be7 {[%clk 0:02:26.3]} 11. Rc1 {[%clk 0:02:10.5]}
11... a6 {[%clk 0:02:25]} 12. c5 {[%clk 0:02:09.9]} 12... dxc5 {[%clk
0:02:21.1]} 13. Nf3 {[%clk 0:02:07.5]} 13... Bd6 {[%clk 0:02:15.8]} 14. Qc2
{[%clk 0:01:41.9]} 14... b5 {[%clk 0:02:15.3]} 15. a4 {[%clk 0:01:38]} 15... b4
{[%clk 0:02:15.1]} 16. Nb1 {[%clk 0:01:38.1]} 16... Bg4 {[%clk 0:02:10.8]} 17.
Nxe5 {[%clk 0:01:24.1]} 17... Bxe5 {[%clk 0:02:03.6]} 18. Bxg4 {[%clk
0:01:22.5]} 18... Qd6 {[%clk 0:01:56.7]} 19. Be6 {[%clk 0:01:13.5]} 19... Ne7
{[%clk 0:01:53.5]} 20. Nd2 {[%clk 0:01:12.6]} 20... c6 {[%clk 0:01:43.1]} 21.
Nc4 {[%clk 0:00:42.8]} 21... Qb8 {[%clk 0:01:33.6]} 22. O-O {[%clk 0:00:18]}
22... Nxh5 {[%clk 0:01:07.8]} 23. Rfd1 {[%clk 0:00:15.9]} 23... g5 {[%clk
0:01:00.4]} 24. d6 {[%clk 0:00:16.2]} 24... gxh4 {[%clk 0:01:00.3]} 25. Nxe5
{[%clk 0:00:16.7]} 25... Nd5 {[%clk 0:00:54.8]} 26. exd5 {[%clk 0:00:15.5]}
26... Qxd6 {[%clk 0:00:54.2]} 27. Qg6+ {[%clk 0:00:16]} 27... Ke7 {[%clk
0:00:53.3]} 28. Qf7+ {[%clk 0:00:15.4]} 28... Kd8 {[%clk 0:00:53.4]} 29. Nxc6+
{[%clk 0:00:16]} 29... Qxc6 {[%clk 0:00:50.1]} 30. dxc6# {[%clk 0:00:16.9]} 1-0

[Event "*** Titled Tuesday Blitz"]
[Site "Chess.com"]
[Date "2021.04.20"]
[Round "5"]
[White "beautroll"]
[Black "vinniethepooh"]
[Result "0-1"]
[WhiteElo "2458"]
[BlackElo "2738"]
[TimeControl "180+1"]
[EndTime "10:53:44 PDT"]
[Termination "vinniethepooh won by resignation"]

1. e4 {[%clk 0:03:00.9]} 1... c5 {[%clk 0:02:59]} 2. Nf3 {[%clk 0:03:00.4]} 2...
d6 {[%clk 0:02:59.6]} 3. d4 {[%clk 0:03:00.4]} 3... cxd4 {[%clk 0:03:00.5]} 4.
Nxd4 {[%clk 0:03:01.3]} 4... Nf6 {[%clk 0:03:01.3]} 5. Nc3 {[%clk 0:03:01]} 5...
a6 {[%clk 0:03:02]} 6. h3 {[%clk 0:02:58.4]} 6... e6 {[%clk 0:03:01.2]} 7. g4
{[%clk 0:02:57.8]} 7... b5 {[%clk 0:03:01.8]} 8. Bg2 {[%clk 0:02:55.3]} 8... Bb7
{[%clk 0:03:02.3]} 9. O-O {[%clk 0:02:53.2]} 9... Nfd7 {[%clk 0:03:00.9]} 10. a3
{[%clk 0:02:50.5]} 10... Be7 {[%clk 0:02:58.5]} 11. Be3 {[%clk 0:02:41.1]} 11...
Nb6 {[%clk 0:02:58.3]} 12. b3 {[%clk 0:02:14.7]} 12... N8d7 {[%clk 0:02:56.9]}
13. Qd2 {[%clk 0:02:12.9]} 13... Rc8 {[%clk 0:02:57.4]} 14. f4 {[%clk
0:02:02.3]} 14... Qc7 {[%clk 0:02:57.1]} 15. Nce2 {[%clk 0:02:01]} 15... h5
{[%clk 0:02:37.2]} 16. g5 {[%clk 0:01:57.6]} 16... Nc5 {[%clk 0:02:37.7]} 17.
Qa5 {[%clk 0:01:35.6]} 17... Nbd7 {[%clk 0:01:57.4]} 18. Qxc7 {[%clk 0:01:08.6]}
18... Rxc7 {[%clk 0:01:58.3]} 19. e5 {[%clk 0:01:07.9]} 19... dxe5 {[%clk
0:01:52.4]} 20. fxe5 {[%clk 0:01:06.3]} 20... Bxg2 {[%clk 0:01:37.2]} 21. Kxg2
{[%clk 0:01:07.2]} 21... Nxe5 {[%clk 0:01:37.9]} 22. Bf4 {[%clk 0:01:07.1]}
22... Ncd7 {[%clk 0:01:38]} 23. a4 {[%clk 0:01:02.4]} 23... b4 {[%clk
0:01:29.8]} 24. Rad1 {[%clk 0:00:55.2]} 24... Rc5 {[%clk 0:01:25.5]} 25. Rd2
{[%clk 0:00:52.3]} 25... Ng6 {[%clk 0:01:24.5]} 26. Nf3 {[%clk 0:00:44.7]} 26...
Nxf4+ {[%clk 0:01:18.6]} 27. Nxf4 {[%clk 0:00:45.6]} 27... Bxg5 {[%clk
0:01:17.5]} 28. Nxg5 {[%clk 0:00:32.1]} 28... Rxg5+ {[%clk 0:01:18.4]} 29. Kh2
{[%clk 0:00:32.7]} 29... Ne5 {[%clk 0:01:13.7]} 30. Rd6 {[%clk 0:00:27.4]} 30...
O-O {[%clk 0:01:08.4]} 31. Rxa6 {[%clk 0:00:22.7]} 31... Rc8 {[%clk 0:01:08.8]}
32. Rf2 {[%clk 0:00:22.2]} 32... Rxc2 {[%clk 0:01:07.8]} 33. Ra8+ {[%clk
0:00:19.5]} 33... Kh7 {[%clk 0:01:07.1]} 0-1

[Event "*** Titled Tuesday Blitz"]
[Site "Chess.com"]
[Date "2021.04.20"]
[Round "5"]
[White "SHIVACalypso"]
[Black "Guzman70"]
[Result "1-0"]
[WhiteElo "2458"]
[BlackElo "2312"]
[TimeControl "180+1"]
[EndTime "10:53:49 PDT"]
[Termination "SHIVACalypso won by checkmate"]

1. Nf3 {[%clk 0:03:00.9]} 1... Nf6 {[%clk 0:02:58.7]} 2. c4 {[%clk 0:03:01.3]}
2... g6 {[%clk 0:02:59.3]} 3. g3 {[%clk 0:03:00.8]} 3... Bg7 {[%clk 0:02:56.4]}
4. Bg2 {[%clk 0:02:59.8]} 4... O-O {[%clk 0:02:56.9]} 5. O-O {[%clk 0:02:59.5]}
5... d6 {[%clk 0:02:57.5]} 6. Nc3 {[%clk 0:02:56.7]} 6... e5 {[%clk 0:02:55.6]}
7. d3 {[%clk 0:02:56.6]} 7... Nc6 {[%clk 0:02:52.3]} 8. Rb1 {[%clk 0:02:52.6]}
8... Nh5 {[%clk 0:02:51.9]} 9. b4 {[%clk 0:02:51.1]} 9... f5 {[%clk 0:02:52.4]}
10. b5 {[%clk 0:02:51.4]} 10... Ne7 {[%clk 0:02:52.1]} 11. Qb3 {[%clk
0:02:46.3]} 11... Kh8 {[%clk 0:02:47.9]} 12. a4 {[%clk 0:02:43.7]} 12... a5
{[%clk 0:02:43.5]} 13. Bb2 {[%clk 0:02:43]} 13... f4 {[%clk 0:02:39.4]} 14. Nd5
{[%clk 0:02:36.2]} 14... Be6 {[%clk 0:02:15.9]} 15. Nd2 {[%clk 0:02:28.6]} 15...
Nxd5 {[%clk 0:02:05.8]} 16. cxd5 {[%clk 0:02:27.7]} 16... Bg4 {[%clk 0:02:05.8]}
17. Nf3 {[%clk 0:02:12.3]} 17... b6 {[%clk 0:02:01.3]} 18. Rfc1 {[%clk
0:02:11.3]} 18... Qd7 {[%clk 0:01:59.7]} 19. Qc4 {[%clk 0:02:05.1]} 19... Rac8
{[%clk 0:01:58]} 20. Qc6 {[%clk 0:02:05.1]} 20... Qf5 {[%clk 0:01:43.9]} 21. Qb7
{[%clk 0:01:55.6]} 21... Qf7 {[%clk 0:01:34.4]} 22. Rc2 {[%clk 0:01:48.2]} 22...
fxg3 {[%clk 0:01:14.5]} 23. hxg3 {[%clk 0:01:47.1]} 23... Bh6 {[%clk 0:01:14.3]}
24. Bc1 {[%clk 0:01:35]} 24... Bg7 {[%clk 0:01:05.1]} 25. Be3 {[%clk 0:01:29.8]}
25... Nf6 {[%clk 0:01:02.4]} 26. Ng5 {[%clk 0:01:22.5]} 26... Qe7 {[%clk
0:00:59.7]} 27. Rbc1 {[%clk 0:01:03.2]} 27... h6 {[%clk 0:00:51.8]} 28. Rxc7
{[%clk 0:01:01]} 28... Rxc7 {[%clk 0:00:49.3]} 29. Rxc7 {[%clk 0:01:01.9]} 29...
Qxc7 {[%clk 0:00:46.5]} 30. Qxc7 {[%clk 0:01:01.3]} 30... hxg5 {[%clk
0:00:47.2]} 31. Bxg5 {[%clk 0:00:56.1]} 31... Nh7 {[%clk 0:00:47.3]} 32. Be7
{[%clk 0:00:51.9]} 32... Rf7 {[%clk 0:00:47.3]} 33. Qxd6 {[%clk 0:00:50.9]}
33... Bxe2 {[%clk 0:00:43.9]} 34. Be4 {[%clk 0:00:48.9]} 34... Nf6 {[%clk
0:00:38.2]} 35. Bxg6 {[%clk 0:00:44.4]} 35... Rxe7 {[%clk 0:00:37.5]} 36. Qxe7
{[%clk 0:00:43.8]} 36... Nxd5 {[%clk 0:00:35.5]} 37. Qe8+ {[%clk 0:00:43.7]}
37... Bf8 {[%clk 0:00:35.4]} 38. Qxf8# {[%clk 0:00:43.9]} 1-0

[Event "*** Titled Tuesday Blitz"]
[Site "Chess.com"]
[Date "2021.04.20"]
[Round "5"]
[White "OriTaichman"]
[Black "not_najdorfs_player"]
[Result "1-0"]
[WhiteElo "2551"]
[BlackElo "2367"]
[TimeControl "180+1"]
[EndTime "10:53:51 PDT"]
[Termination "OriTaichman won by resignation"]

1. e4 {[%clk 0:02:58]} 1... e5 {[%clk 0:02:59.9]} 2. d4 {[%clk 0:02:57.3]} 2...
exd4 {[%clk 0:02:57.4]} 3. Qxd4 {[%clk 0:02:58.2]} 3... Nc6 {[%clk 0:02:56.8]}
4. Qe3 {[%clk 0:02:57.7]} 4... d6 {[%clk 0:02:35.7]} 5. Nc3 {[%clk 0:02:57]}
5... g6 {[%clk 0:02:33.8]} 6. Bd2 {[%clk 0:02:55.6]} 6... Bg7 {[%clk 0:02:33.4]}
7. O-O-O {[%clk 0:02:55.3]} 7... Qe7 {[%clk 0:02:31.5]} 8. Nd5 {[%clk
0:02:53.9]} 8... Qd8 {[%clk 0:02:20.9]} 9. h4 {[%clk 0:02:38]} 9... Nf6 {[%clk
0:02:08.2]} 10. h5 {[%clk 0:02:35.9]} 10... Nxh5 {[%clk 0:02:04.6]} 11. Bc3
{[%clk 0:02:24.8]} 11... Be6 {[%clk 0:01:47.7]} 12. Rxh5 {[%clk 0:02:17.6]}
12... gxh5 {[%clk 0:01:37.9]} 13. Bxg7 {[%clk 0:02:16.4]} 13... Kd7 {[%clk
0:01:16]} 14. Bxh8 {[%clk 0:01:59.5]} 14... Qxh8 {[%clk 0:01:16.9]} 15. Nf3
{[%clk 0:01:56.9]} 15... Rg8 {[%clk 0:01:12.4]} 16. Bb5 {[%clk 0:01:51.3]} 16...
a6 {[%clk 0:01:11.3]} 17. Bxc6+ {[%clk 0:01:43.9]} 17... bxc6 {[%clk 0:01:12.2]}
18. Nxc7 {[%clk 0:01:43.1]} 18... Kxc7 {[%clk 0:01:09.6]} 19. Qa7+ {[%clk
0:01:43.1]} 19... Kd8 {[%clk 0:01:00.9]} 20. Qb8+ {[%clk 0:01:25.6]} 20... Ke7
{[%clk 0:00:58.2]} 21. Qxd6+ {[%clk 0:01:25.9]} 21... Kf6 {[%clk 0:00:55.1]} 22.
Qe5+ {[%clk 0:01:25.7]} 22... Ke7 {[%clk 0:00:52.1]} 23. Qc5+ {[%clk 0:01:25.5]}
23... Kf6 {[%clk 0:00:47.5]} 24. Rd7 {[%clk 0:01:13.6]} 24... h6 {[%clk
0:00:20.3]} 25. Qe7+ {[%clk 0:01:06.7]} 25... Kg6 {[%clk 0:00:19.8]} 26. Nh4+
{[%clk 0:00:57.9]} 26... Kh7 {[%clk 0:00:14.8]} 27. Qxe6 {[%clk 0:00:56.2]}
27... Rg7 {[%clk 0:00:11.3]} 28. Qf5+ {[%clk 0:00:54.8]} 1-0